{"text_format":"1","workbook":"xlsx","n_sheets":8,"sheets":["CARÁTULA","C1 ALTERACIÓN","C1 DX LAB ","C1 HC","C2 ALTERACIÓN","C2 DX LAB","C2 HC","INSTRUCCIONES"],"not_rendered":{"charts":0,"images":5,"macros":0,"external_links":0,"defined_names":0,"comments":0,"pivot_tables":0},"unopened":[],"bounds":{"document_bytes":16777216,"sheet_cells":100000,"rows_first":2000,"rows_last":500,"rows_between":2000,"halvings":0,"cell_chars":16384,"cell_head_chars":4096},"cells_cut":0,"cells_raw":0,"read":"whole","date_system":"1900"}

{"sheet":"CARÁTULA","index":0,"n_rows":30,"n_cols":7,"rows_kept":30,"cut":false,"hidden":false,"merged":[[29,6,29,9],[10,2,10,9],[11,2,11,9],[12,8,12,13],[14,7,14,12],[17,1,17,11],[18,1,18,11],[0,2,0,11],[1,2,1,11],[9,2,9,9],[5,3,5,8],[7,2,7,9]]}
[null,null,"UNIVERSIDAD NACIONAL AUTÓNOMA DE MÉXICO"]
[null,null,"FACULTAD DE ESTUDIOS SUPERIORES CUAUTITLAN"]
[null,null,null,"DEPARTAMENTO DE CIENCIAS BIOLÓGICAS"]
[]
[]
[null,null,null,"EXPLORADOR DEL DIAGNÓSTICO"]
[]
[null,null,"Proyecto PAPIME PE 209615  "]
[]
[null,null,"DESARROLLO DE LABORATORIOS Y TALLERES VIRTUALES"]
[null,null,"COMO APOYO PARA MEJORAR LA ENSEÑANZA EN LAS ASIGNATURAS DE"]
[null,null," LABORATORIO CLÍNICO, PATOLOGÍA Y EPIDEMIOLOGÍA"]
[]
[]
[]
[]
[]
[null,"Bienvenido al taller virtual para el tema de ERITROCITOS que consiste de varios ejercicios sobre el tema"]
[null,"Para ingresar presiona el boton del caso de interés."]
[]
[null,"INSTRUCCIONES DE MANEJO","INGRESAR"]
[null,"CASO CLÍNICO 1","INGRESAR"]
[null,"CASO CLINICO 2","INGRESAR"]
[]
[]
[]
[]
[]
[]
[null,null,null,null,null,null,"Desarrollado por: Dr. Guillermo Valdivia Anda©"]

{"sheet":"C1 ALTERACIÓN","index":1,"n_rows":28,"n_cols":15,"rows_kept":28,"cut":false,"hidden":false,"merged":[[26,3,26,4],[2,3,2,4],[2,7,2,8],[3,7,3,8],[0,0,0,5],[1,0,1,5],[14,3,14,4]]}
["EXPLORADOR DIAGNÓSTICO"]
["ERITROCITOS"]
["CASO 1",null,null,"RANGO NORMAL",null,null,null,"SELECCIONA LA ALTERACIÓN"]
["DETERMINACIÓN","RESULTADO","UNIDADES","BAJO","ALTO","UNIDADES",null,"Y SU DESVIACIÓN",null,null,null,null,null,"N","N"]
["Eritrocitos",4030000,"/µL",5.5,8.5,"millones/µL",null,null,null,null,null,null,null,"↑","↓"]
["Hemoglobina",10.5,"g/dl",12,19.5,"g/dl",null,null,null,null,null,null,null,"↑↑","↓↓"]
["Hematocrito",28.7,"%",37,55,"%",null,null,null,null,null,null,null,"↑↑↑","↓↓↓"]
["V.G.M.",{"$f":"(B7/B5)*10000000","v":71.215880893300238},"µ3",60,77,"µ3",null,null,"considera la siguiente clave de equivalencias",null,null,null,null,"↓"]
["C.H.G.M.",{"$f":"(B6/B7)*100","v":36.585365853658537},"%",32,36,"%",null,null,null,null,null,null,null,"↓↓"]
["H.G.M.",{"$f":"(B6/B5)*10000000","v":26.054590570719604},"ρg",19.5,24,"ρg",null,null,"N   Normal, entra en el rango",null,null,null,null,"↓↓↓"]
["V.S.G",30,"mm / h",0,13,"mm / h",null,null,"↑ leve, \"+\""]
["RETICULOCITOS:  ",{"$f":"+(B5*B13)/100","v":80600},"  /µ L",0,80000,"  /µL",null,null,"↑↑  moderado \"++\""]
["RETICULOCITOS:  ",2,"%",0,1.5,"%",null,null,"↑↑↑ severo \"+++\""]
["PROTEINAS PLASMATICAS.",5.5,"g/dL",5.4,7.8,"g/dL",null,null,"↓"]
["Celularidad","Aumentada",null,"Normal",null,null,null,null,"↓↓"]
["%Mieloides",80,"  %",43,72,"  %",null,null,"↓↓↓"]
["%Eritroides",20,"  %",28,57,"  %"]
["Rel. M/E",{"$f":"+B16/B17","v":4},null,0.75,2.5]
["Hierro Total",83,"ug/dL",60,170,"ug/dL"]
["Hierro Ligado",140,"ug/dL",50,138,"ug/dL"]
["Hierro libre",10.3,"ug/dL",6,12.5,"ug/dL"]
["Capacidad de Fijación",70,"ug/dL",240,450,"ug/dL"]
["Haptoglobina libre",125,"mg/dL",60,270,"mg/dL"]
["Bilirrubinas totales",0.8,"mg/dL",0.1,1,"mg/dL"]
["Bilirrubina directa",0.3,"mg/dL",0,0.2,"mg/dL"]
["Bilirrubina indirecta",0.5,"mg/dL",0,0.6,"mg/dL"]
["Hemoglobina en orina",0,"mg/dL","Negativo",null,"mg/dL"]
["Saturación de oxigeno",90,"  %",93,98,"  %",null,null,"IR A LA SIGUIENTE FASE"]

{"sheet":"C1 DX LAB ","index":2,"n_rows":47,"n_cols":26,"rows_kept":47,"cut":false,"hidden":false,"merged":[[8,3,8,4],[8,8,8,10],[9,8,9,10],[3,0,3,5],[4,0,4,5],[8,5,9,5]]}
[null,null,null,null,null,null,null,null,null,null,null,null,null,null,null,null,null,null,"NO HAY ALTERACIÓN o FALTAN PRUEBAS"]
[null,null,null,null,null,null,null,null,null,null,null,null,null,null,null,null,null,null,"OCUPADO POR OTRO TEJIDO",null,null,"NO HAY ALTERACIÓN","INSUFICIENCIA RENAL SEVERA",null,null,"POLICITEMIA ABSOLUTA"]
[null,null,null,null,null,null,null,null,null,null,null,null,null,null,null,"ERITROPOYETINA",null,null,"TRATAMIENTO CON CITOSTÁTICOS",null,null,"BAJA DE HIERRO","NO TIENE ALTERACIÓN O FALTAN PRUEBAS",null,null,"POLICITEMIA RELATIVA"]
["EXPLORADOR DIAGNÓSTICO",null,null,null,null,null,null,null,"UTILIZA LAS ALTERACIONES CALCULADAS",null,null,null,null,null,null,null,null,null,"AGENTES BIOLÓGICOS",null,null,"DESNUTRICIÓN",null,null,null,"NO HAY ALTERACIÓN"]
["ERITROCITOS",null,null,null,null,null,null,null,null,null,null,null,null,null,"ESTÍMULO","TIROIDEAS",null,null,null,null,null,null,"HIPOTIROIDISMO"]
[null,null,null,null,null,null,null,null,"SOLO DEBERAS MARCAR UNA ALTERACIÓN, SI LA PRUEBA TE SIRVE PARA ELLO",null,null,null,"PUEDES UTILIZAR LAS OTRAS PRUEBAS REALIZADAS",null,null,null,null,null,null,null,null,null,"HIPERTIROIDISMO",null,null,"ABSOLUTA ABSOLUTA"]
["EXPLORADOR DIAGNÓSTICO",null,null,null,null,null,null,null,"SI LA PRUEBA NO SIRVE DEBERAS DEJARLO EN BLANCO",null,null,null,null,null,null,"ESTRÓGENOS",null,null,"NO HAY ALTERACIÓN",null,null,"BAJA PRODUCCIÓN","NO TIENE ALTERACIÓN O FALTAN PRUEBAS",null,null,"ABSOLUTA TRANSITORIA"]
["ERITROCITOS",null,null,null,null,null,null,null,null,null,null,null,null,"BAJA PRODUCCIÓN",null,null,null,null,"ANEMIA",null,null,"AUMENTADA DESTRUCCIÓN",null,null,null,"VERA"]
["CASO 1",null,null,"RANGO",null,"UNIDADES","ALTERACIÓN",null,"INDICA EL DIAGNÓSTICO ",null,null,null,"INDICA EL DIAGNÓSTICO DE LABORATORIO",null,"DISMINUCIÓN DE NUTRIENTES","MEMBRANA","VITAMINAS",null,"POLICITEMIA",null,null,"PÉRDIDA","HIPERESTOGENISMO POR TUMOR",null,null,"DESHIDRATACIÓN"]
["DETERMINACIÓN","RESULTADO","UNIDADES","BAJO","ALTO",null,"IDENTIFICADA",null,"DE LABORATORIO Por morfología y por respuesta",null,null,null,"POR MECANISMO",null,null,null,null,null,null,null,null,"NO HAY ALTERACIÓN","HIPERESTROGENISMO IATROGÉNICO"]
[{"$f":"'C1 ALTERACIÓN'!A5","v":"Eritrocitos"},{"$f":"'C1 ALTERACIÓN'!B5","v":4030000},{"$f":"'C1 ALTERACIÓN'!C5","v":"/µL"},{"$f":"'C1 ALTERACIÓN'!D5","v":5.5},{"$f":"'C1 ALTERACIÓN'!E5","v":8.5},{"$f":"'C1 ALTERACIÓN'!F5","v":"millones/µL"},{"$f":"'C1 ALTERACIÓN'!H5","v":0},null,null,null,null,null,null,null,null,"HEMOGLOBINA",null,null,null,null,null,null,"NO TIENE ALTERACIÓN O FALTAN PRUEBAS",null,null,"PRODUCCIÓN MEDULA ÓSEA"]
[{"$f":"'C1 ALTERACIÓN'!A6","v":"Hemoglobina"},{"$f":"'C1 ALTERACIÓN'!B6","v":10.5},{"$f":"'C1 ALTERACIÓN'!C6","v":"g/dl"},{"$f":"'C1 ALTERACIÓN'!D6","v":12},{"$f":"'C1 ALTERACIÓN'!E6","v":19.5},{"$f":"'C1 ALTERACIÓN'!F6","v":"g/dl"},{"$f":"'C1 ALTERACIÓN'!H6","v":0},null,null,null,null,null,null,null,null,null,"DEFICIENCIA DE HIERRO",null,"NO HAY ALTERACIÓN",null,null,"BAJA DE ESTÍMULO",null,null,null,"CONTRACCIÓN ESPLÉNICA"]
[{"$f":"'C1 ALTERACIÓN'!A7","v":"Hematocrito"},{"$f":"'C1 ALTERACIÓN'!B7","v":28.7},{"$f":"'C1 ALTERACIÓN'!C7","v":"%"},{"$f":"'C1 ALTERACIÓN'!D7","v":37},{"$f":"'C1 ALTERACIÓN'!E7","v":55},{"$f":"'C1 ALTERACIÓN'!F7","v":"%"},{"$f":"'C1 ALTERACIÓN'!H7","v":0},null,null,null,null,null,null,null,"DISMINUCIÓN DE TEJIDO MIELOIDE",null,null,null,"NORMOCITICA NORMOCROMICA",null,null,"DISMINUCIÓN DE NUTRIENTES",null,null,null,"NEOPLASIA PRIMARIA MEDULA ÓSEA"]
[{"$f":"'C1 ALTERACIÓN'!A8","v":"V.G.M."},{"$f":"'C1 ALTERACIÓN'!B8","v":71.215880893300238},{"$f":"'C1 ALTERACIÓN'!C8","v":"µ3"},{"$f":"'C1 ALTERACIÓN'!D8","v":60},{"$f":"'C1 ALTERACIÓN'!E8","v":77},{"$f":"'C1 ALTERACIÓN'!F8","v":"µ3"},{"$f":"'C1 ALTERACIÓN'!H8","v":0},null,null,null,null,null,null,null,null,null,null,null,"NORMOCITICA HIPOCROMICA",null,null,"DISMINUCIÓN DE TEJIDO DE MO","DEFICIENCIA LEVE DE HIERRO",null,null,"DESHIDRATACIÓN"]
[{"$f":"'C1 ALTERACIÓN'!A9","v":"C.H.G.M."},{"$f":"'C1 ALTERACIÓN'!B9","v":36.585365853658537},{"$f":"'C1 ALTERACIÓN'!C9","v":"%"},{"$f":"'C1 ALTERACIÓN'!D9","v":32},{"$f":"'C1 ALTERACIÓN'!E9","v":36},{"$f":"'C1 ALTERACIÓN'!F9","v":"%"},{"$f":"'C1 ALTERACIÓN'!H9","v":0},null,null,null,null,null,null,null,null,null,null,null,"MACROCITICA NORMOCROMICA",null,null,"NO HAY ALTERACIÓN","DEFICIENCIA SEVERA DE HIERRO"]
[{"$f":"'C1 ALTERACIÓN'!A10","v":"H.G.M."},{"$f":"'C1 ALTERACIÓN'!B10","v":26.054590570719604},{"$f":"'C1 ALTERACIÓN'!C10","v":"ρg"},{"$f":"'C1 ALTERACIÓN'!D10","v":19.5},{"$f":"'C1 ALTERACIÓN'!E10","v":24},{"$f":"'C1 ALTERACIÓN'!F10","v":"ρg"},{"$f":"'C1 ALTERACIÓN'!H10","v":0},null,null,null,null,null,null,"AUMENTADA DESTRUCCIÓN",null,null,null,null,"MACROCITICA HIPOCROMICA",null,null,null,"INFLAMACIÓN CRÓNICA"]
[{"$f":"'C1 ALTERACIÓN'!A11","v":"V.S.G"},{"$f":"'C1 ALTERACIÓN'!B11","v":30},{"$f":"'C1 ALTERACIÓN'!C11","v":"mm / h"},{"$f":"'C1 ALTERACIÓN'!D11","v":0},{"$f":"'C1 ALTERACIÓN'!E11","v":13},{"$f":"'C1 ALTERACIÓN'!F11","v":"mm / h"},{"$f":"'C1 ALTERACIÓN'!H11","v":0},null,null,null,null,null,null,null,null,null,null,null,"MICROCITICA NORMOCROMICA",null,null,"ERITROPOYETINA","POSIBLE TUMOR"]
[{"$f":"'C1 ALTERACIÓN'!A12","v":"RETICULOCITOS:  "},{"$f":"+(B11*B19)/100","v":80600},{"$f":"'C1 ALTERACIÓN'!C12","v":"  /µ L"},{"$f":"'C1 ALTERACIÓN'!D12","v":0},{"$f":"'C1 ALTERACIÓN'!E12","v":80000},{"$f":"'C1 ALTERACIÓN'!F12","v":"  /µL"},{"$f":"'C1 ALTERACIÓN'!H12","v":0},null,null,null,null,null,null,null,null,null,null,null,"MICROCITICA HIPOCROMICA",null,null,"TIROIDEAS"]
[{"$f":"'C1 ALTERACIÓN'!A13","v":"RETICULOCITOS:  "},{"$f":"'C1 ALTERACIÓN'!B13","v":2},{"$f":"'C1 ALTERACIÓN'!C13","v":"%"},{"$f":"'C1 ALTERACIÓN'!D13","v":0},{"$f":"'C1 ALTERACIÓN'!E13","v":1.5},{"$f":"'C1 ALTERACIÓN'!F13","v":"%"},{"$f":"'C1 ALTERACIÓN'!H13","v":0},null,null,null,null,null,null,null,null,null,null,null,null,null,null,"ESTROGENOS"]
[{"$f":"'C1 ALTERACIÓN'!A14","v":"PROTEINAS PLASMATICAS."},{"$f":"'C1 ALTERACIÓN'!B14","v":5.5},{"$f":"'C1 ALTERACIÓN'!C14","v":"g/dL"},{"$f":"'C1 ALTERACIÓN'!D14","v":5.4},{"$f":"'C1 ALTERACIÓN'!E14","v":7.8},{"$f":"'C1 ALTERACIÓN'!F14","v":"g/dL"},{"$f":"'C1 ALTERACIÓN'!H14","v":0},null,null,null,null,null,null,null,null,null,null,null,null,null,null,"NO HAY ALTERACIÓN O REQUIERES OTRAS PRUEBAS"]
[{"$f":"'C1 ALTERACIÓN'!A15","v":"Celularidad"},{"$f":"'C1 ALTERACIÓN'!B15","v":"Aumentada"}," ",{"$f":"'C1 ALTERACIÓN'!D15","v":"Normal"}," "," ",{"$f":"'C1 ALTERACIÓN'!H15","v":0}]
[{"$f":"'C1 ALTERACIÓN'!A16","v":"%Mieloides"},{"$f":"'C1 ALTERACIÓN'!B16","v":80},{"$f":"'C1 ALTERACIÓN'!C16","v":"  %"},{"$f":"'C1 ALTERACIÓN'!D16","v":43},{"$f":"'C1 ALTERACIÓN'!E16","v":72},{"$f":"'C1 ALTERACIÓN'!F16","v":"  %"},{"$f":"'C1 ALTERACIÓN'!H16","v":0},null,null,null,null,null,null,"PÉRDIDA",null,null,null,null,null,null,null,"NO HAY ALTERACIÓN"]
[{"$f":"'C1 ALTERACIÓN'!A17","v":"%Eritroides"},{"$f":"'C1 ALTERACIÓN'!B17","v":20},{"$f":"'C1 ALTERACIÓN'!C17","v":"  %"},{"$f":"'C1 ALTERACIÓN'!D17","v":28},{"$f":"'C1 ALTERACIÓN'!E17","v":57},{"$f":"'C1 ALTERACIÓN'!F17","v":"  %"},{"$f":"'C1 ALTERACIÓN'!H17","v":0},null,null,null,null,null,null,null,null,null,null,null,"NO APLICA",null,null,"MEMBRANA"]
[{"$f":"'C1 ALTERACIÓN'!A18","v":"Rel. M/E"},{"$f":"'C1 ALTERACIÓN'!B18","v":4}," ",{"$f":"'C1 ALTERACIÓN'!D18","v":0.75},{"$f":"'C1 ALTERACIÓN'!E18","v":2.5}," ",{"$f":"'C1 ALTERACIÓN'!H18","v":0},null,null,null,null,null,null,null,null,null,null,null,"REGENERATIVA",null,null,"HEMOGLOBINA"]
[{"$f":"'C1 ALTERACIÓN'!A19","v":"Hierro Total"},{"$f":"'C1 ALTERACIÓN'!B19","v":83},{"$f":"'C1 ALTERACIÓN'!C19","v":"ug/dL"},{"$f":"'C1 ALTERACIÓN'!D19","v":60},{"$f":"'C1 ALTERACIÓN'!E19","v":170},{"$f":"'C1 ALTERACIÓN'!F19","v":"ug/dL"},{"$f":"'C1 ALTERACIÓN'!H19","v":0},null,null,null,null,null,null,null,null,null,null,null,"DEGENERATIVA"]
[{"$f":"'C1 ALTERACIÓN'!A20","v":"Hierro Ligado"},{"$f":"'C1 ALTERACIÓN'!B20","v":140},{"$f":"'C1 ALTERACIÓN'!C20","v":"ug/dL"},{"$f":"'C1 ALTERACIÓN'!D20","v":50},{"$f":"'C1 ALTERACIÓN'!E20","v":138},{"$f":"'C1 ALTERACIÓN'!F20","v":"ug/dL"},{"$f":"'C1 ALTERACIÓN'!H20","v":0},null,null,null,null,null,null,null,null,null,null,null,null,null,null,"VITAMINAS","B12"]
[{"$f":"'C1 ALTERACIÓN'!A21","v":"Hierro libre"},{"$f":"'C1 ALTERACIÓN'!B21","v":10.3},{"$f":"'C1 ALTERACIÓN'!C21","v":"ug/dL"},{"$f":"'C1 ALTERACIÓN'!D21","v":6},{"$f":"'C1 ALTERACIÓN'!E21","v":12.5},{"$f":"'C1 ALTERACIÓN'!F21","v":"ug/dL"},{"$f":"'C1 ALTERACIÓN'!H21","v":0},null,null,null,null,null,"INDICA EL DIAGNÓSTICO DE LABORATORIO",null,null,null,null,null,null,null,null,"DESNUTRICIÓN","FOLICO"]
[{"$f":"'C1 ALTERACIÓN'!A22","v":"Capacidad de Fijación"},{"$f":"'C1 ALTERACIÓN'!B22","v":70},{"$f":"'C1 ALTERACIÓN'!C22","v":"ug/dL"},{"$f":"'C1 ALTERACIÓN'!D22","v":240},{"$f":"'C1 ALTERACIÓN'!E22","v":450},{"$f":"'C1 ALTERACIÓN'!F22","v":"ug/dL"},{"$f":"'C1 ALTERACIÓN'!H22","v":0},null,null,null,null,null,"POR MECANISMO",null,null,null,null,null,"NO TIENE",null,null,"DEFICIENCIA","AC. GRASOS ESENCIALES"]
[{"$f":"'C1 ALTERACIÓN'!A23","v":"Haptoglobina libre"},{"$f":"'C1 ALTERACIÓN'!B23","v":125},{"$f":"'C1 ALTERACIÓN'!C23","v":"mg/dL"},{"$f":"'C1 ALTERACIÓN'!D23","v":60},{"$f":"'C1 ALTERACIÓN'!E23","v":270},{"$f":"'C1 ALTERACIÓN'!F23","v":"mg/dL"},{"$f":"'C1 ALTERACIÓN'!H23","v":0},null,null,null,null,null,null,null,null,null,null,null,"INTRAVASCULAR",null,null,"NO HAY ALTERACIÓN","NO HAY ALTERACIÓN"]
[{"$f":"'C1 ALTERACIÓN'!A24","v":"Bilirrubinas totales"},{"$f":"'C1 ALTERACIÓN'!B24","v":0.8},{"$f":"'C1 ALTERACIÓN'!C24","v":"mg/dL"},{"$f":"'C1 ALTERACIÓN'!D24","v":0.1},{"$f":"'C1 ALTERACIÓN'!E24","v":1},{"$f":"'C1 ALTERACIÓN'!F24","v":"mg/dL"},{"$f":"'C1 ALTERACIÓN'!H24","v":0},null,null,null,null,null,null,null,null,null,null,null,"EXTRAVASCULAR"]
[{"$f":"'C1 ALTERACIÓN'!A25","v":"Bilirrubina directa"},{"$f":"'C1 ALTERACIÓN'!B25","v":0.3},{"$f":"'C1 ALTERACIÓN'!C25","v":"mg/dL"},{"$f":"'C1 ALTERACIÓN'!D25","v":0},{"$f":"'C1 ALTERACIÓN'!E25","v":0.2},{"$f":"'C1 ALTERACIÓN'!F25","v":"mg/dL"},{"$f":"'C1 ALTERACIÓN'!H25","v":0}]
[{"$f":"'C1 ALTERACIÓN'!A26","v":"Bilirrubina indirecta"},{"$f":"'C1 ALTERACIÓN'!B26","v":0.5},{"$f":"'C1 ALTERACIÓN'!C26","v":"mg/dL"},{"$f":"'C1 ALTERACIÓN'!D26","v":0},{"$f":"'C1 ALTERACIÓN'!E26","v":0.6},{"$f":"'C1 ALTERACIÓN'!F26","v":"mg/dL"},{"$f":"'C1 ALTERACIÓN'!H26","v":0},null,null,null,null,null,null,null,null,null,null,null,null,null,null,"HIERRO","FALTA DE APORTE"]
[{"$f":"'C1 ALTERACIÓN'!A27","v":"Hemoglobina en orina"},{"$f":"'C1 ALTERACIÓN'!B27","v":0},{"$f":"'C1 ALTERACIÓN'!C27","v":"mg/dL"},{"$f":"'C1 ALTERACIÓN'!D27","v":"Negativo"}," ",{"$f":"'C1 ALTERACIÓN'!F27","v":"mg/dL"},{"$f":"'C1 ALTERACIÓN'!H27","v":0},null,null,null,null,null,null,null,null,null,null,null,"AGUDA",null,null,"OTRA DEFICIENCIA","MALA ABSORCIÓN"]
[{"$f":"'C1 ALTERACIÓN'!A28","v":"Saturación de oxigeno"},{"$f":"'C1 ALTERACIÓN'!B28","v":90},{"$f":"'C1 ALTERACIÓN'!C28","v":"  %"},{"$f":"'C1 ALTERACIÓN'!D28","v":93},{"$f":"'C1 ALTERACIÓN'!E28","v":98},{"$f":"'C1 ALTERACIÓN'!F28","v":"  %"},{"$f":"'C1 ALTERACIÓN'!H28","v":0},null,null,null,null,null,null,null,null,null,null,null,"CRÓNICA",null,null,"DESNUTRICIÓN","PÉRDIDA"]
[null,null,null,null,null,null,null,null,null,null,null,null,null,null,null,null,null,null,"NO TIENE"]
[]
[null,null,null,null,null,null,null,null,null,"IR A LA SIGUIENTE FASE"]
[]
[null,null,null,null,null,null,null,null,null,null,null,null,null,null,null,null,null,null,null,null,null,null,"CONSUMO"]
["OTRAS PRUEBAS DE LABORATORIO"]
[null,null,null,null,null,null,null,null,null,"N","N"]
[null,null,null,null,null,null,null,null,null,"↑","↓"]
[null,null,null,null,null,null,null,null,null,"↑↑","↓↓"]
[null,null,null,null,null,null,null,null,null,"↑↑↑","↓↓↓"]
[null,null,null,null,null,null,null,null,null,"↓"]
[null,null,null,null,null,null,null,null,null,"↓↓"]
[null,null,null,null,null,null,null,null,null,"↓↓↓"]

{"sheet":"C1 HC","index":3,"n_rows":37,"n_cols":10,"rows_kept":37,"cut":false,"hidden":false,"merged":[[32,1,33,5],[36,2,36,3],[28,2,30,5],[0,1,0,6],[1,1,1,6],[23,1,23,5],[24,2,25,5],[26,2,27,5]]}
[null,"EXPLORADOR DIAGNÓSTICO"]
[null,"ERITROCITOS"]
[null,"CASO 1",null,null,null,null,null,null,null,"REGRESAR AL ÍNDICE"]
[null,null,"ESPECIE: CANINO ",null,"N° ESTUDIO : 0411389"]
[null,null,"RAZA: C/MALTES",null,"EDAD: 13 AÑOS"]
[null,null,"IDENTIFICACION DOLLY´S",null,"SEXO: HEMBRA"]
[]
[null,"ANAMNESIS: El animal habita en una fábrica de pinturas, empezó con problemas hace 6 meses y se le trató con"]
[null,"piretrinas ya que se encontraron muchas pulgas. Comenzó con debilidad hace 3 meses que se ha incrementando "]
[null,"EXPLORACIÓN: Actualmente tiene mucosas pálidaz, aumento de la frecuencia cardiaca y respiratoria e intolerancia leve al ejercicio"]
[null,"Presenta aumento leve de los linfonodos retrofaríngeos y de los popitleos"]
[null,"También hay aumento en la secreción de moco en las fosas nasales."]
[null,"COMPLETA EL CUADRO ANOTANDO LO SOLICITADO:"]
[null,"lista de problemas ",null,"lista de enfermedades",null,"lista de etiologías"]
[1,null,"A",null,"I"]
[2,null,"B",null,"II"]
[3,null,"C",null,"III"]
[4,null,"D",null,"IV"]
[5,null,"E",null,"V"]
[6,null,"F",null,"VI"]
[7,null,"G",null,"VII",null,null,"RELACIONA EL DIAGNOSTICO DE LABORATORIO  CON LAS LISTAS"]
[8,null,"H",null,"VIII",null,null,"COLOCANDO EL NÚMERO O LETRA CORRESPONDIENTE"]
[null,null,null,null,null,null,null,"LISTA DE","LISTA DE","LISTA DE "]
[null,"ESCRIBE EL DIAGNÓSTICO DE LABORATORIO COMPLETO PARA LA FÓRMULA ROJA: (usa los datos obtenidos)",null,null,null,null,null,"PROBLEMAS","ENFERMEDADES","ETIOLOGÍAS"]
[null,"POR MORFOLOGÍA:"]
[]
[null,"POR RESPUESTA"]
[]
[null,"POR MECANISMO"]
[]
[]
[null,"INDICA EL DIAGNÓSTICO DE LABORATORIO COMPLETO  PARA LA FORMULA BLANCA"]
[]
[]
[]
[]
[null,null,"REGRESAR AL MENÚ"]

{"sheet":"C2 ALTERACIÓN","index":4,"n_rows":28,"n_cols":15,"rows_kept":28,"cut":false,"hidden":false,"merged":[[2,7,2,8],[3,7,3,8],[14,3,14,4],[26,3,26,4],[0,0,0,5],[1,0,1,5],[2,3,2,4]]}
["EXPLORADOR DIAGNÓSTICO"]
["ERITROCITOS"]
["CASO 2",null,null,"RANGO NORMAL",null,null,null,"SELECCIONA LA ALTERACIÓN"]
["DETERMINACIÓN","RESULTADO","UNIDADES","BAJO","ALTO","UNIDADES",null,"Y SU DESVIACIÓN",null,null,null,null,null,"N","N"]
["Eritrocitos",11100000,"/µL",5.5,8.5,"millones/µL",null," ",null,null,null,null,null,"↑","↓"]
["Hemoglobina",23.7,"g/dl",12,19.5,"g/dl",null," ",null,null,null,null,null,"↑↑","↓↓"]
["Hematocrito",73.400000000000006,"%",37,55,"%",null," ",null,null,null,null,null,"↑↑↑","↓↓↓"]
["V.G.M.",66.126126126126124,"µ3",60,77,"µ3",null," ",null,null,null,null,null,"↓"]
["C.H.G.M.",32.288828337874655,"%",32,36,"%",null," ",null,null,null,null,null,"↓↓"]
["H.G.M.",21.351351351351351,"ρg",19.5,24,"ρg",null," ",null,null,null,null,null,"↓↓↓"]
["V.S.G",0,"mm / h",0,13,"mm / h",null," "]
["RETICULOCITOS:  ",{"$f":"+(B5*B13)/100","v":0},"  /µ L",0,80000,"  /µL",null," "]
["RETICULOCITOS:  ",0,"%",0,1.5,"%",null," "]
["PROTEINAS PLASMATICAS.",8.9,"g/dL",5.4,7.8,"g/dL",null," "]
["Celularidad","Normal",null,"Normal",null,null,null," "]
["%Mieloides",52,"  %",43,72,"  %",null," "]
["%Eritroides",48,"  %",28,57,"  %",null," "]
["Rel. M/E",{"$f":"+B16/B17","v":1.0833333333333333},null,0.75,2.5,null,null," "]
["Hierro Total",73,"ug/dL",60,170,"ug/dL",null," "]
["Hierro Ligado",110,"ug/dL",50,138,"ug/dL",null," "]
["Hierro libre",12,"ug/dL",6,12.5,"ug/dL",null," "]
["Capacidad de Fijación",260,"ug/dL",240,450,"ug/dL",null," "]
["Haptoglobina libre",140,"mg/dL",60,270,"mg/dL",null," "]
["Bilirrubinas totales",0.7,"mg/dL",0.1,1,"mg/dL",null," "]
["Bilirrubina directa",0.3,"mg/dL",0,0.2,"mg/dL",null," "]
["Bilirrubina indirecta",0.4,"mg/dL",0,0.6,"mg/dL",null," "]
["Hemoglobina en orina",0,"mg/dL","Negativo",null,"mg/dL",null," "]
["Saturación de oxigeno",90,"  %",93,98,"  %",null," ",null,"IR A LA SIGUIENTE FASE"]

{"sheet":"C2 DX LAB","index":5,"n_rows":48,"n_cols":26,"rows_kept":48,"cut":false,"hidden":false,"merged":[[32,3,32,4],[8,3,8,4],[4,8,4,10],[5,8,5,10],[3,0,3,5],[4,0,4,5],[20,3,20,4]]}
[null,null,null,null,null,null,null,null,null,null,null,null,null,null,null,null,null,null,"NO HAY ALTERACIÓN o FALTAN PRUEBAS"]
[null,null,null,null,null,null,null,null,null,null,null,null,null,null,null,null,null,null,"OCUPADO POR OTRO TEJIDO",null,null,"NO HAY ALTERACIÓN","INSUFICIENCIA RENAL SEVERA",null,null,"POLICITEMIA ABSOLUTA"]
[null,null,null,null,null,null,null,null,null,null,null,null,null,null,null,"ERITROPOYETINA",null,null,"TRATAMIENTO CON CITOSTÁTICOS",null,null,"BAJA DE HIERRO","NO TIENE ALTERACIÓN O FALTAN PRUEBAS",null,null,"POLICITEMIA RELATIVA"]
["EXPLORADOR DIAGNÓSTICO",null,null,null,null,null,null,null,null,null,null,null,null,null,null,null,null,null,"AGENTES BIOLÓGICOS",null,null,"DESNUTRICIÓN",null,null,null,"NO HAY ALTERACIÓN"]
["ERITROCITOS",null,null,null,null,null,null,null,"INDICA EL DIAGNÓSTICO ",null,null,null,null,null,"ESTÍMULO","TIROIDEAS",null,null,null,null,null,null,"HIPOTIROIDISMO"]
[null,null,null,null,null,null,null,null,"DE LABORATORIO",null,null,null,null,null,null,null,null,null,null,null,null,null,"HIPERTIROIDISMO",null,null,"ABSOLUTA ABSOLUTA"]
["EXPLORADOR DIAGNÓSTICO",null,null,null,null,null,null,null,null,null,null,null,null,null,null,"ESTRÓGENOS",null,null,"NO HAY ALTERACIÓN",null,null,"BAJA PRODUCCIÓN","NO TIENE ALTERACIÓN O FALTAN PRUEBAS",null,null,"ABSOLUTA TRANSITORIA"]
["ERITROCITOS",null,null,null,null,null,null,null,null,null,null,null,null,"BAJA PRODUCCIÓN",null,null,null,null,"ANEMIA",null,null,"AUMENTADA DESTRUCCIÓN",null,null,null,"VERA"]
["CASO 2",null,null,"RANGO NORMAL",null,null,"ALTERACIÓN",null,null,null,null,null,"INDICA EL DIAGNÓSTICO DE LABORATORIO",null,"DISMINUCIÓN DE NUTRIENTES","MEMBRANA","VITAMINAS",null,"POLICITEMIA",null,null,"PÉRDIDA","HIPERESTOGENISMO POR TUMOR",null,null,"DESHIDRATACIÓN"]
["DETERMINACIÓN","RESULTADO","UNIDADES","BAJO","ALTO","UNIDADES","IDENTIFICADA",null,null,null,null,null,"POR MECANISMO",null,null,null,null,null,null,null,null,"NO HAY ALTERACIÓN","HIPERESTROGENISMO IATROGÉNICO"]
["Eritrocitos",11100000,"/µL",5.5,8.5,"millones/µL",{"$f":"'C2 ALTERACIÓN'!H5","v":" "},null,null,null,null,null,null,null,null,"HEMOGLOBINA",null,null,null,null,null,null,"NO TIENE ALTERACIÓN O FALTAN PRUEBAS",null,null,"PRODUCCIÓN MEDULA ÓSEA"]
["Hemoglobina",23.7,"g/dl",12,19.5,"g/dl",{"$f":"'C2 ALTERACIÓN'!H6","v":" "},null,null,null,null,null,null,null,null,null,"DEFICIENCIA DE HIERRO",null,"NO HAY ALTERACIÓN",null,null,"BAJA DE ESTÍMULO",null,null,null,"CONTRACCIÓN ESPLÉNICA"]
["Hematocrito",73.400000000000006,"%",37,55,"%",{"$f":"'C2 ALTERACIÓN'!H7","v":" "},null,null,null,null,null,null,null,"DISMINUCIÓN DE TEJIDO MIELOIDE",null,null,null,"NORMOCITICA NORMOCROMICA",null,null,"DISMINUCIÓN DE NUTRIENTES",null,null,null,"NEOPLASIA PRIMARIA MEDULA ÓSEA"]
["V.G.M.",66.126126126126124,"µ3",60,77,"µ3",{"$f":"'C2 ALTERACIÓN'!H8","v":" "},null,null,null,null,null,null,null,null,null,null,null,"NORMOCITICA HIPOCROMICA",null,null,"DISMINUCIÓN DE TEJIDO DE MO","DEFICIENCIA LEVE DE HIERRO",null,null,"DESHIDRATACIÓN"]
["C.H.G.M.",32.288828337874655,"%",32,36,"%",{"$f":"'C2 ALTERACIÓN'!H9","v":" "},null,null,null,null,null,null,null,null,null,null,null,"MACROCITICA NORMOCROMICA",null,null,"NO HAY ALTERACIÓN","DEFICIENCIA SEVERA DE HIERRO"]
["H.G.M.",21.351351351351351,"ρg",19.5,24,"ρg",{"$f":"'C2 ALTERACIÓN'!H10","v":" "},null,null,null,null,null,null,"AUMENTADA DESTRUCCIÓN",null,null,null,null,"MACROCITICA HIPOCROMICA",null,null,null,"INFLAMACIÓN CRÓNICA"]
["V.S.G",0,"mm / h",0,13,"mm / h",{"$f":"'C2 ALTERACIÓN'!H11","v":" "},null,null,null,null,null,null,null,null,null,null,null,"MICROCITICA NORMOCROMICA",null,null,"ERITROPOYETINA","POSIBLE TUMOR"]
["RETICULOCITOS:  ",{"$f":"+(B11*B19)/100","v":0},"  /µ L",0,80000,"  /µL",{"$f":"'C2 ALTERACIÓN'!H12","v":" "},null,null,null,null,null,null,null,null,null,null,null,"MICROCITICA HIPOCROMICA",null,null,"TIROIDEAS"]
["RETICULOCITOS:  ",0,"%",0,1.5,"%",{"$f":"'C2 ALTERACIÓN'!H13","v":" "},null,null,null,null,null,null,null,null,null,null,null,null,null,null,"ESTROGENOS"]
["PROTEINAS PLASMATICAS.",8.9,"g/dL",5.4,7.8,"g/dL",{"$f":"'C2 ALTERACIÓN'!H14","v":" "},null,null,null,null,null,null,null,null,null,null,null,null,null,null,"NO HAY ALTERACIÓN O REQUIERES OTRAS PRUEBAS"]
["Celularidad","Normal",null,"Normal",null,null,{"$f":"'C2 ALTERACIÓN'!H15","v":" "}]
["%Mieloides",52,"  %",43,72,"  %",{"$f":"'C2 ALTERACIÓN'!H16","v":" "},null,null,null,null,null,null,"PÉRDIDA",null,null,null,null,null,null,null,"NO HAY ALTERACIÓN"]
["%Eritroides",48,"  %",28,57,"  %",{"$f":"'C2 ALTERACIÓN'!H17","v":" "},null,null,null,null,null,null,null,null,null,null,null,"NO APLICA",null,null,"MEMBRANA"]
["Rel. M/E",{"$f":"+B22/B23","v":1.0833333333333333},null,0.75,2.5,null,{"$f":"'C2 ALTERACIÓN'!H18","v":" "},null,null,null,null,null,null,null,null,null,null,null,"REGENERATIVA",null,null,"HEMOGLOBINA"]
["Hierro Total",73,"ug/dL",60,170,"ug/dL",{"$f":"'C2 ALTERACIÓN'!H19","v":" "},null,null,null,null,null,null,null,null,null,null,null,"DEGENERATIVA"]
["Hierro Ligado",110,"ug/dL",50,138,"ug/dL",{"$f":"'C2 ALTERACIÓN'!H20","v":" "},null,null,null,null,null,null,null,null,null,null,null,null,null,null,"VITAMINAS","B12"]
["Hierro libre",12,"ug/dL",6,12.5,"ug/dL",{"$f":"'C2 ALTERACIÓN'!H21","v":" "},null,null,null,null,null,"INDICA EL DIAGNÓSTICO DE LABORATORIO",null,null,null,null,null,null,null,null,"DESNUTRICIÓN","FOLICO"]
["Capacidad de Fijación",260,"ug/dL",240,450,"ug/dL",{"$f":"'C2 ALTERACIÓN'!H22","v":" "},null,null,null,null,null,"POR MECANISMO",null,null,null,null,null,"NO TIENE",null,null,"DEFICIENCIA","AC. GRASOS ESENCIALES"]
["Haptoglobina libre",140,"mg/dL",60,270,"mg/dL",{"$f":"'C2 ALTERACIÓN'!H23","v":" "},null,null,null,null,null,null,null,null,null,null,null,"INTRAVASCULAR",null,null,"NO HAY ALTERACIÓN","NO HAY ALTERACIÓN"]
["Bilirrubinas totales",0.7,"mg/dL",0.1,1,"mg/dL",{"$f":"'C2 ALTERACIÓN'!H24","v":" "},null,null,null,null,null,null,null,null,null,null,null,"EXTRAVASCULAR"]
["Bilirrubina directa",0.3,"mg/dL",0,0.2,"mg/dL",{"$f":"'C2 ALTERACIÓN'!H25","v":" "}]
["Bilirrubina indirecta",0.4,"mg/dL",0,0.6,"mg/dL",{"$f":"'C2 ALTERACIÓN'!H26","v":" "},null,null,null,null,null,null,null,null,null,null,null,null,null,null,"HIERRO","FALTA DE APORTE"]
["Hemoglobina en orina",0,"mg/dL","Negativo",null,"mg/dL",{"$f":"'C2 ALTERACIÓN'!H27","v":" "},null,null,null,null,null,null,null,null,null,null,null,"AGUDA",null,null,"OTRA DEFICIENCIA","MALA ABSORCIÓN"]
["Saturación de oxigeno",90,"  %",93,98,"  %",{"$f":"'C2 ALTERACIÓN'!H28","v":" "},null,null,null,null,null,null,null,null,null,null,null,"CRÓNICA",null,null,"DESNUTRICIÓN","PÉRDIDA"]
[null,null,null,null,null,null,null,null,null,null,null,null,null,null,null,null,null,null,"NO TIENE"]
[]
[null,null,null,null,null,null,null,null,null,"IR A LA SIGUIENTE FASE"]
[]
[null,null,null,null,null,null,null,null,null,null,null,null,null,null,null,null,null,null,null,null,null,null,"CONSUMO"]
["OTRAS PRUEBAS DE LABORATORIO"]
[]
[null,null,null,null,null,null,null,null,null,null,"N"]
[null,null,null,null,null,null,null,null,null,null,"↑"]
[null,null,null,null,null,null,null,null,null,null,"↑↑"]
[null,null,null,null,null,null,null,null,null,null,"↑↑↑"]
[null,null,null,null,null,null,null,null,null,null,"↓"]
[null,null,null,null,null,null,null,null,null,null,"↓↓"]
[null,null,null,null,null,null,null,null,null,null,"↓↓↓"]

{"sheet":"C2 HC","index":6,"n_rows":42,"n_cols":10,"rows_kept":42,"cut":false,"hidden":false,"merged":[[37,1,38,5],[41,2,41,3],[33,2,35,5],[1,1,1,6],[2,1,2,6],[28,1,28,5],[29,2,30,5],[31,2,32,5]]}
[]
[null,"EXPLORADOR DIAGNÓSTICO"]
[null,"ERITROCITOS"]
[]
[null,"CASO 2"]
[null,null,"ESPECIE: CANINO ",null,"N° ESTUDIO : 6915",null," "," "]
[null,null,"RAZA:  SCHNAUZER      ",null,"EDAD: 8 MESES"]
[null,null,"IDENTIFICACION:  BLACKY",null,"SEXO: MACHO"]
[null,null,null,null,null,null,null,null,"IR AL INDICE"]
[]
[]
[]
[null,"ANAMNESIS: presentó hace 15 días una diarrea severa ligeramente hemorrágica se trató con antibióticos por vía oral y dexametasona oral"]
[null,"a los 3 días se administraron corticoesteroides por vía endovenosa, así como antibióticos intramasculares. Toma mucha agua, desconocen cuanto orina"]
[null,"EXPLORACIÓN: Actualmente tiene mucosas congestionadas, resequedad de mucosa, leve hundimiento de los ojos y el retorno venoso es normal."]
[null,"En forma bilateral tiene una alopecia leve en el dorso y la piel se muestra adelgazada en la parte ventral del abdomen."]
[null," "]
[null,"COMPLETA EL CUADRO:"]
[null,"lista de problemas ",null,"lista de enfermedades",null,"lista de etiologías"]
[1,null,"A",null,"I"]
[2,null,"B",null,"II"]
[3,null,"C",null,"III"]
[4,null,"D",null,"IV"]
[5,null,"E",null,"V"]
[6,null,"F",null,"VI"]
[7,null,"G",null,"VII",null,null,"RELACIONA EL DIAGNOSTICO DE LAB CON LAS LISTAS"]
[8,null,"H",null,"VIII",null,null,"COLOCANDO EL NÚMERO O LETRA CORRESPONDIENTE"]
[null,null,null,null,null,null,null,"LISTA DE","LISTA DE","LISTA DE "]
[null,"ESCRIBE EL DIAGNÓSTICO DE LABORATORIO COMPLETO PARA LA FÓRMULA ROJA:",null,null,null,null,null,"PROBLEMAS","ENFERMEDADES","ETIOLOGÍAS"]
[null,"POR MORFOLOGÍA:"]
[]
[null,"POR RESPUESTA"]
[]
[null,"POR MECANISMO"]
[]
[]
[null,"INDICA EL DIAGNÓSTICO DE LABORATORIO COMPLETO  PARA LA FORMULA BLANCA"]
[]
[]
[]
[]
[null,null,"REGRESAR AL INDICE"]

{"sheet":"INSTRUCCIONES","index":7,"n_rows":23,"n_cols":9,"rows_kept":23,"cut":false,"hidden":false,"merged":[[22,1,22,2],[3,8,3,11]]}
[]
["HOLA"]
[null,"BIENVENIDO AL EJERCICIO DE INTERPRETACIÓN."]
[null,"Está basado en el sistema",null,null,null,null,null,null,"NO MODIFIQUES LAS CELDAS EN AMARILLO"]
[]
[]
[]
[]
[]
[]
[]
[]
[]
[]
[]
[]
[]
[]
[null,"Ingresa al caso de interés pulsando el cursor en el lugar donde se presente una \"manita\""]
[null,"En los casos que aparesca una celda de selección como esta:",null,null,null,null,null,null,"Selecciona el término adecuado."]
[null,"Empieza por el primer caso solo selecciona valores, no modifiques ninguna celda. En los ejercicios se pueden repetir algunos diagnósticos, coloca sólo los términos cuando estes seguro"]
[null,"y cuando la relación entre la alteración y el resultado esté justificada"]
[null,"EMPEZAR EL EJERCICIO "]